bitfinex/quotes_SOLUSD_20250210
["timestamp","ask_amount","ask_price","bid_price","bid_amount"]
[1739201672480,6.2607,203.1,203.07,22.78876221]
[1739201672676,6.2607,203.1,203.06,22.78876221]
[1739201672877,0.98634085,203.09,203.06,22.78876221]
[1739201673079,0.98634831,203.09,203.06,22.78876221]
[1739201673391,0.063,203.09,203.06,22.78876221]
[1739201674466,0.063,203.09,203.05,22.78876221]
[1739201674664,0.98639064,203.09,203.05,22.78876221]
[1739201675075,0.063,203.09,203.08,22.78876221]
[1739201676388,0.063,203.09,203.07,22.78876221]
[1739201676592,0.063,203.09,203.08,22.78876221]
[1739201677893,0.063,203.09,203.06,22.78876221]
[1739201681294,0.063,203.09,203.03,1.20207888]
[1739201681295,0.063,203.09,203.08,22.78876221]
[1739201682778,0.063,203.09,203.07,22.78876221]
[1739201682978,0.063,203.09,203.08,22.78876221]
[1739201685599,36.26361074,203.09,202.99,0.03]
[1739201685785,14.90777885,203.08,203.01,13.98421229]
[1739201685980,20.36901229,203.06,202.99,0.03]
[1739201686300,0.92362482,203.05,202.99,14.01421229]
[1739201686801,14.33547335,203.05,202.99,14.01421229]
[1739201686973,14.33547335,203.05,202.99,0.03]
[1739201687174,28.31968564,203.05,202.99,0.03]
[1739201687576,13.98421229,203.03,202.99,0.03]
[1739201687894,14.90801114,203.02,202.99,0.03]
[1739201688101,13.41184853,203.01,202.99,0.03]
[1739201688403,19.72434853,202.99,202.91,13.98421229]
[1739201688584,13.98421229,202.96,202.88,13.98421229]
[1739201688800,0.9240693,202.95,202.88,13.98421229]
[1739201689324,14.90828159,202.95,202.87,13.98421229]
[1739201689708,23.67981917,202.95,202.87,22.75574987]
[1739201690219,1.5761,202.93,202.78,19.770191]
[1739201690427,22.75574987,202.88,202.81,22.75574987]
[1739201690609,0.92444533,202.87,202.81,22.75574987]
[1739201691716,0.92447538,202.86,202.78,0.03]
[1739201691921,0.92447538,202.86,202.79,22.75574987]
[1739201692129,23.68022525,202.86,202.79,22.75574987]
[1739201692717,23.68022525,202.86,202.78,0.03]
[1739201692718,0.92447538,202.86,202.8,22.75574987]
[1739201693021,0.92451431,202.85,202.83,22.75574987]
[1739201693216,0.92444837,202.89,202.82,22.75574987]
[1739201693400,13.41184853,202.88,202.82,22.75574987]
[1739201693603,0.92447018,202.87,202.82,22.75574987]
[1739201693812,0.92447018,202.87,202.81,22.75574987]
[1739201694108,0.92447018,202.87,202.82,22.75574987]
[1739201694295,0.92439317,202.89,202.83,22.75574987]
[1739201694498,13.41184853,202.88,202.83,22.75574987]
[1739201694709,0.92440837,202.87,202.83,22.75574987]
[1739201695703,0.92440917,202.86,202.83,22.75574987]
[1739201695900,0.92440692,202.88,202.83,22.75574987]
[1739201696095,0.92440692,202.88,202.84,22.75574987]
[1739201696425,0.92440692,202.88,202.83,22.75574987]
[1739201696721,0.92440692,202.88,202.85,22.75574987]
[1739201696901,0.92440692,202.88,202.79,0.03]
[1739201696902,0.92431043,202.9,202.87,22.75574987]
[1739201697109,6.3125,202.91,202.88,22.75574987]
[1739201697417,6.3125,202.91,202.9,22.75574987]
[1739201697732,6.3125,202.91,202.89,22.75574987]
[1739201698032,0.92414962,202.9,202.86,22.75574987]
[1739201698326,0.92414962,202.9,202.88,22.75574987]
[1739201698621,0.92414962,202.9,202.87,22.75574987]
[1739201699524,0.92414962,202.9,202.86,22.75574987]
[1739201700227,0.92414962,202.9,202.79,1.24799125]
[1739201700228,0.92414962,202.9,202.87,22.75574987]
[1739201701018,6.3125,202.91,202.89,22.75574987]
[1739201701226,6.3125,202.91,202.9,22.75574987]
[1739201701522,6.3125,202.91,202.89,22.75574987]
[1739201702216,1.5761,202.93,202.9,22.75574987]
[1739201702426,1.5761,202.93,202.92,22.75574987]
[1739201702726,6.3788,202.96,202.92,22.75574987]
[1739201702924,6.3788,202.96,202.95,22.75574987]
[1739201703726,6.3788,202.96,202.93,22.75574987]
[1739201703911,0.92402259,202.95,202.91,22.75574987]
[1739201704232,0.92402259,202.95,202.93,22.75574987]
[1739201704421,6.3788,202.96,202.94,22.75574987]
[1739201705023,6.3788,202.96,202.95,22.75574987]
[1739201705200,6.3788,203.01,202.95,22.75574987]
[1739201705402,0.92368416,203.0,202.97,22.75574987]
[1739201705617,23.67943403,203.0,202.93,22.75574987]
[1739201705824,13.41184853,202.98,202.91,42.75574987]
[1739201706135,0.92404677,202.97,202.91,22.75574987]
[1739201706336,0.92404677,202.97,202.9,22.75574987]
[1739201706641,29.13454987,202.93,202.86,22.75574987]
[1739201706928,0.92432618,202.92,202.86,22.78574987]
[1739201707100,21.0,202.88,202.78,0.03]
[1739201707308,22.75574987,202.83,202.78,0.03]
[1739201707528,0.9247826,202.82,202.78,0.03]
[1739201707714,0.9247826,202.82,202.79,22.78574987]
[1739201708032,0.92456888,202.86,202.81,22.75574987]
[1739201708924,0.92447178,202.85,202.81,22.75574987]
[1739201709223,13.41184853,202.87,202.81,22.75574987]
[1739201709407,0.92450198,202.86,202.81,22.75574987]
[1739201709610,0.92450198,202.86,202.81,14.01238143]
[1739201710610,0.92438229,202.88,202.85,14.01238143]
[1739201710820,6.3788,202.89,202.87,14.01238143]
[1739201711004,6.3788,202.89,202.86,14.01238143]
[1739201711209,0.9242896,202.92,202.88,14.01238143]
[1739201711536,0.9242896,202.92,202.86,14.01238143]
[1739201711833,0.9242896,202.92,202.88,14.01238143]
[1739201713004,0.9242896,202.92,202.87,14.01238143]
[1739201713718,0.9242896,202.92,202.88,14.01238143]
[1739201714012,0.9242896,202.92,202.87,14.01238143]
[1739201714416,0.9242896,202.92,202.88,14.01238143]
[1739201714736,0.92414845,202.93,202.88,14.01238143]
[1739201715030,0.92418443,202.93,202.89,14.01238143]
[1739201715235,6.5273,202.94,202.91,14.01238143]
[1739201715435,0.9239671,202.98,202.93,14.01238143]
[1739201715728,0.9239671,202.98,202.87,20.0]
[1739201715729,0.9239671,202.98,202.94,14.01238143]
[1739201715933,0.9239671,202.98,202.93,14.01238143]
[1739201716138,0.9239671,202.98,202.94,14.01238143]
[1739201716433,0.063,202.99,202.97,14.01238143]
[1739201716641,0.063,202.99,202.98,14.01238143]
[1739201717005,0.063,202.99,202.97,14.01238143]
[1739201717207,0.063,202.99,202.96,14.01238143]
[1739201717523,0.063,202.99,202.98,14.01238143]
[1739201717930,0.063,202.99,202.97,14.01238143]
[1739201718434,0.063,202.99,202.94,14.01238143]
[1739201718621,0.063,202.99,202.95,14.01238143]
[1739201718941,14.01238143,202.96,202.89,14.01238143]
[1739201719103,14.01238143,202.94,202.87,15.24851033]
[1739201719308,0.92414138,202.93,202.87,14.01238143]
[1739201720341,0.92415278,202.92,202.87,14.01238143]
[1739201720636,7.26914998,202.94,202.87,14.01238143]
[1739201720819,13.41184853,202.93,202.87,14.01238143]
[1739201721008,0.92420814,202.92,202.87,14.01238143]
[1739201721203,0.92420814,202.92,202.86,0.03]
[1739201721435,7.26918334,202.94,202.91,14.01238143]
[1739201721637,7.26918334,202.94,202.89,14.01238143]
[1739201721943,7.26918334,202.94,202.87,34.01238143]
[1739201723347,7.26918334,202.94,202.89,14.01238143]
[1739201723547,7.26918334,202.94,202.91,14.01238143]
[1739201723917,6.345,202.94,202.93,14.01238143]
[1739201724124,6.408,202.99,202.93,14.01238143]
[1739201724326,0.063,202.99,202.98,14.01238143]
[1739201725613,0.063,202.99,202.98,22.72495518]
[1739201727930,0.063,202.99,202.96,22.72495518]
[1739201728130,0.063,202.99,202.94,22.72495518]
[1739201728326,0.98689324,202.99,202.94,22.72495518]
[1739201728755,0.98689324,202.99,202.87,50.39666067]
[1739201728756,0.98689324,202.99,202.92,22.72495518]
[1739201729353,0.98689324,202.99,202.94,22.72495518]
[1739201730652,0.063,202.99,202.97,22.72495518]
[1739201731026,0.063,202.99,202.98,22.72495518]
[1739201731752,0.063,202.99,202.96,22.72495518]
[1739201732528,0.063,202.99,202.95,22.72495518]
[1739201732740,0.9869059,202.99,202.95,22.72495518]
[1739201732946,0.9869059,202.99,202.93,22.72495518]
[1739201733948,0.9869059,202.99,202.95,22.72495518]
[1739201734258,0.063,202.99,202.97,22.72495518]
[1739201734468,0.063,202.99,202.98,22.72495518]
[1739201734968,0.063,202.99,202.97,22.72495518]
[1739201735160,0.063,202.99,202.96,22.72495518]
[1739201735348,0.063,202.99,202.94,22.72495518]
[1739201735553,0.98687786,202.99,202.94,22.72495518]
[1739201736059,0.98687786,202.99,202.96,22.72495518]
[1739201736657,0.063,202.99,202.96,22.72495518]
[1739201736864,0.063,202.99,202.87,1.0]
[1739201736865,0.063,202.99,202.98,22.72495518]
[1739201739264,0.063,202.99,202.93,1.23958066]
[1739201739265,0.9867716,202.99,202.93,22.72495518]
[1739201739744,35.94480497,203.01,202.93,22.72495518]
[1739201740071,0.87076457,203.0,202.93,22.72495518]
[1739201742462,0.87076457,203.0,202.94,22.72495518]
[1739201742767,0.87076457,203.01,202.97,22.72495518]
[1739201743138,13.41184853,203.02,202.97,22.72495518]
[1739201743434,0.87076457,203.01,202.97,22.72495518]
[1739201743641,0.063,203.0,202.97,22.72495518]
[1739201744761,0.87076457,202.99,202.93,22.72495518]
[1739201745972,22.72495518,202.99,202.91,22.72495518]
[1739201746168,22.72495518,202.97,202.89,22.72495518]
[1739201746355,0.87076457,202.96,202.89,22.72495518]
[1739201746535,0.87076457,202.96,202.92,22.72495518]
[1739201746739,0.87076457,202.99,202.92,22.72495518]
[1739201747544,0.87076457,202.99,202.93,22.72495518]
[1739201747752,0.87076457,202.99,202.92,13.9963362]
[1739201747953,13.9963362,202.97,202.89,13.9963362]
[1739201748157,0.87076457,202.96,202.89,13.9963362]
[1739201748981,0.87076457,202.96,202.9,13.9963362]
[1739201749276,0.87076457,202.97,202.9,13.9963362]
[1739201750172,0.87076457,202.97,202.92,13.9963362]
[1739201752846,0.87076457,202.99,202.92,13.9963362]
[1739201754772,14.86710077,202.99,202.92,14.0263362]
[1739201755270,0.87076457,202.99,202.92,14.0263362]
[1739201755655,0.87076457,202.99,202.93,13.9963362]
[1739201756380,0.87076457,202.99,202.92,14.0263362]
[1739201758673,0.87076457,202.99,202.94,13.9963362]
[1739201760005,0.93376457,203.0,202.94,13.9963362]
[1739201761382,13.41184853,202.99,202.92,14.0263362]
[1739201761559,0.87076457,202.98,202.92,14.0263362]
[1739201762081,0.87076457,202.98,202.94,13.9963362]
[1739201762457,0.93376457,203.0,202.94,13.9963362]
[1739201765872,0.063,203.0,202.98,13.9963362]
[1739201766272,0.063,203.0,202.99,13.9963362]
[1739201769679,0.063,203.0,202.99,8.73769103]
[1739201770573,0.063,203.0,202.99,9.47642098]
[1739201770772,0.063,203.09,203.02,20.0]
[1739201770992,0.063,203.09,203.08,8.73769103]
[1739201772897,0.063,203.09,203.07,8.73769103]
[1739201773473,0.063,203.09,203.05,8.73769103]
[1739201773707,0.063,203.09,203.06,8.73769103]
[1739201773999,0.063,203.09,203.05,8.73769103]
[1739201774211,0.063,203.09,203.04,8.73769103]
[1739201774583,0.063,203.09,203.05,8.73769103]
[1739201775598,0.063,203.09,203.04,13.98177639]
[1739201775913,0.063,203.09,203.07,13.98177639]
[1739201776204,0.063,203.09,203.06,13.98177639]
[1739201777112,0.063,203.09,203.05,13.98177639]
[1739201777913,0.063,203.09,203.04,13.98177639]
[1739201778286,0.063,203.09,203.05,13.98177639]
[1739201778782,0.063,203.09,203.04,13.98177639]
[1739201779001,0.063,203.09,203.05,13.98177639]
[1739201779209,0.063,203.09,203.06,13.98177639]
[1739201779511,0.063,203.09,203.07,13.98177639]
[1739201780106,0.063,203.09,203.08,13.98177639]
[1739201785691,0.063,203.15,203.14,13.98177639]
[1739201787494,0.063,203.15,203.14,27.39362492]
[1739201790894,0.063,203.15,203.14,72.29362492]
[1739201791095,0.063,203.15,203.14,87.01347252]
[1739201791495,0.063,203.15,203.14,73.03169613]
[1739201791809,0.063,203.15,203.14,72.29362492]
[1739201793696,0.063,203.15,203.14,13.98177639]
[1739201794517,0.063,203.15,203.11,13.98177639]
[1739201794717,7.64816457,203.16,203.11,13.98177639]
[1739201795015,13.98177639,203.15,203.08,13.98177639]
[1739201795222,13.98177639,203.14,203.07,13.98177639]
[1739201795410,13.98177639,203.14,203.0,0.03]
[1739201795411,21.62994096,203.16,203.08,13.98177639]
[1739201795719,16.38210744,203.16,203.09,8.73394287]
[1739201796218,7.64816457,203.16,203.11,8.73394287]
[1739201796522,7.64816457,203.16,203.09,8.73394287]
[1739201796695,8.73394287,203.14,203.07,8.73394287]
[1739201796894,8.73394287,203.15,203.08,8.73394287]
[1739201797119,7.64816457,203.16,203.1,8.73394287]
[1739201797513,7.64816457,203.16,203.11,8.73394287]
[1739201797724,7.64816457,203.16,203.12,8.73394287]
[1739201798099,7.64816457,203.16,203.1,8.73394287]
[1739201799426,16.38210744,203.16,203.08,8.73394287]
[1739201799920,16.38210744,203.16,203.09,8.73394287]
[1739201800215,8.73394287,203.1,203.02,8.73394287]
[1739201800416,8.73394287,203.11,203.04,8.73394287]
[1739201800594,8.73394287,203.12,203.05,8.73394287]
[1739201801196,16.38210744,203.16,203.09,8.73394287]
[1739201801408,7.64816457,203.16,203.11,8.73394287]
[1739201801616,8.73394287,203.15,203.08,8.73394287]
[1739201801834,8.73394287,203.15,203.04,8.73394287]
[1739201801835,8.73394287,203.11,203.04,8.73394287]
[1739201802004,8.73394287,203.09,203.02,8.73394287]
[1739201802213,7.7144,203.08,203.02,8.73394287]
[1739201803011,8.73394287,203.07,203.0,0.03]
[1739201803316,8.73394287,203.03,203.0,0.03]
[1739201803513,8.73394287,203.01,203.0,0.03]
[1739201803748,14.87214287,203.01,203.0,0.03]
[1739201804329,6.1382,203.01,203.0,0.03]
[1739201805337,14.87214287,203.01,203.0,0.03]
[1739201805640,6.1382,203.01,203.0,0.03]
[1739201806008,14.87214287,203.01,203.0,0.03]
[1739201807050,6.1382,203.01,203.0,0.03]
[1739201808916,14.87214287,203.01,203.0,0.03]
[1739201809612,6.1382,203.01,203.0,0.03]
[1739201810251,14.87214287,203.01,203.0,0.03]
[1739201810448,17.37524287,203.01,203.0,0.03]
[1739201810741,8.73394287,202.94,202.92,0.03]
[1739201810926,8.73394287,202.93,202.92,0.03]
[1739201811447,8.73394287,202.94,202.92,0.03]
[1739201811622,8.73394287,202.98,202.92,0.03]
[1739201812143,7.6413,203.01,202.97,8.73394287]
[1739201812318,7.6413,203.01,202.99,8.73394287]
[1739201812733,7.6413,203.01,202.96,13.41184853]
[1739201812944,7.6413,203.01,202.95,8.73394287]
[1739201813132,7.6413,203.01,202.97,8.73394287]
[1739201813723,7.6413,203.01,202.97,13.99027092]
[1739201814026,7.6413,203.01,202.99,0.03]
[1739201814935,13.99027092,203.0,202.99,0.03]
[1739201815239,1.0,202.99,202.92,0.03]
[1739201815425,13.99027092,202.93,202.92,0.03]
[1739201820527,19.07,203.0,202.92,0.03]
[1739201820528,13.99027092,202.95,202.92,0.03]
[1739201820729,13.99027092,202.94,202.92,0.03]
[1739201820941,13.99027092,202.93,202.92,0.03]
[1739201821239,13.99027092,202.94,202.92,0.03]
[1739201822026,13.99027092,202.93,202.92,0.03]
[1739201822934,26.94267092,202.93,202.92,0.03]
[1739201823144,26.94267092,202.93,202.86,0.03]
[1739201823145,20.0,202.9,202.86,0.03]
[1739201823327,13.99027092,202.87,202.86,0.03]
[1739201823525,22.01487092,202.87,202.86,0.03]
[1739201823832,22.91487092,202.87,202.86,0.03]
[1739201824231,20.0,202.84,202.79,0.03]
[1739201824435,13.99027092,202.8,202.79,0.03]
[1739201824751,18.92117092,202.8,202.79,0.03]
[1739201825124,13.99027092,202.8,202.79,0.03]
[1739201826440,13.99027092,202.81,202.79,0.03]
[1739201826749,13.99027092,202.85,202.79,0.03]
[1739201826953,13.99027092,202.84,202.79,0.03]
[1739201828329,13.99027092,202.83,202.79,0.03]
[1739201828729,13.99027092,202.82,202.79,0.03]
[1739201829353,13.99027092,202.8,202.79,0.03]
[1739201830043,14.99027092,202.8,202.79,0.03]
[1739201830242,13.99027092,202.8,202.79,0.03]
[1739201832558,13.99027092,202.81,202.79,0.03]
[1739201833031,13.99027092,202.86,202.79,14.02027092]
[1739201833234,22.01487092,202.87,202.8,13.41184853]
[1739201833451,22.01487092,202.87,202.8,13.99027092]
[1739201833751,1.0,202.9,202.86,13.41184853]
[1739201834054,1.0,202.9,202.85,13.99027092]
[1739201834055,1.0,202.9,202.88,13.99027092]
[1739201834353,1.0,202.9,202.87,27.40211945]
[1739201834652,1.0,202.9,202.89,13.41184853]
[1739201834857,1.0,202.9,202.89,27.40211945]
[1739201835956,0.063,202.93,202.9,13.41184853]
[1739201836155,0.063,202.93,202.92,27.40211945]
[1739201837966,0.063,202.93,202.92,13.41184853]
[1739201838253,0.063,202.93,202.89,0.03]
[1739201838456,0.063,202.93,202.89,13.44184853]
[1739201839038,0.063,202.93,202.92,13.99027092]
[1739201839239,0.063,202.93,202.92,27.40211945]
[1739201843648,1.6641,203.05,202.93,13.41184853]
[1739201843867,1.6641,203.05,203.02,27.40211945]
[1739201844175,6.0522,203.07,203.04,13.41184853]
[1739201844477,13.99027092,203.05,202.96,13.99027092]
[1739201844660,13.99027092,203.03,202.97,13.41184853]
[1739201844864,13.99027092,203.04,202.97,13.41184853]
[1739201845107,11.9767,203.07,202.98,13.41184853]
[1739201845252,13.99027092,203.01,202.98,13.41184853]
[1739201845654,13.99027092,203.01,202.95,13.41184853]
[1739201845877,13.99027092,202.96,202.89,14.02027092]
[1739201846167,13.99027092,202.94,202.89,0.03]
[1739201846381,13.99027092,202.92,202.89,0.03]
[1739201847655,13.99027092,202.9,202.89,0.03]
[1739201847962,20.0,202.87,202.79,0.03]
[1739201848163,13.99027092,202.83,202.79,0.03]
[1739201848486,13.99027092,202.81,202.79,0.03]
[1739201848650,13.99027092,202.8,202.79,0.03]
[1739201849788,1.5239,202.76,202.73,0.03]
[1739201849985,13.99027092,202.74,202.73,0.03]
[1739201850451,13.99027092,202.75,202.73,0.03]
[1739201850767,15.51417092,202.76,202.73,0.03]
[1739201850968,1.5239,202.76,202.73,0.03]
[1739201851169,13.99027092,202.82,202.74,27.40211945]
[1739201851486,13.99027092,202.81,202.75,13.41184853]
[1739201851692,13.99027092,202.79,202.73,0.03]
[1739201851982,13.99027092,202.78,202.73,0.03]
[1739201853186,13.99027092,202.77,202.73,0.03]
[1739201853356,13.99027092,202.74,202.73,0.03]
[1739201855572,14.99027092,202.74,202.73,0.03]
[1739201855790,13.99027092,202.74,202.73,0.03]
[1739201856276,13.99027092,202.75,202.73,0.03]
[1739201856578,13.99027092,202.74,202.73,0.03]
[1739201858197,19.92267092,202.74,202.73,0.03]
[1739201858402,34.91294184,202.74,202.73,0.03]
[1739201858900,20.92267092,202.74,202.73,0.03]
[1739201859500,19.92267092,202.74,202.73,0.03]
[1739201859884,14.99027092,202.74,202.73,0.03]
[1739201860102,13.99027092,202.74,202.73,0.03]
[1739201860377,14.99027092,202.74,202.73,0.03]
[1739201860582,40.03684184,202.74,202.73,0.03]
[1739201860983,36.51417092,202.72,202.71,0.03]
[1739201861478,36.51417092,202.72,202.61,13.41184853]
[1739201861689,13.99027092,202.7,202.63,13.41184853]
[1739201861891,13.99027092,202.7,202.63,27.40211945]
[1739201862205,15.51417092,202.72,202.65,13.99027092]
[1739201862504,20.0,202.71,202.65,13.41184853]
[1739201862795,20.0,202.71,202.56,13.41184853]
[1739201862796,13.99027092,202.73,202.68,13.41184853]
[1739201863002,13.99027092,202.69,202.61,13.99027092]
[1739201863176,13.99027092,202.64,202.56,13.99027092]
[1739201863372,13.99027092,202.64,202.57,27.40211945]
[1739201863581,13.99027092,202.66,202.52,0.03]
[1739201863782,13.99027092,202.66,202.6,13.41184853]
[1739201863998,1.0,202.69,202.59,13.41184853]
[1739201863999,13.99027092,202.65,202.59,13.41184853]
[1739201864309,13.99027092,202.63,202.59,13.41184853]
[1739201864599,13.99027092,202.61,202.54,13.99027092]
[1739201865180,13.99027092,202.62,202.54,13.99027092]
[1739201865806,13.99027092,202.61,202.55,13.41184853]
[1739201866102,13.99027092,202.58,202.52,0.03]
[1739201866309,13.99027092,202.57,202.52,0.03]
[1739201866679,13.99027092,202.56,202.52,0.03]
[1739201866899,13.99027092,202.54,202.52,0.03]
[1739201867200,14.81,202.53,202.52,0.03]
[1739201867417,28.80027092,202.55,202.52,0.03]
[1739201867714,13.99027092,202.53,202.52,0.03]
[1739201868202,28.80027092,202.53,202.52,0.03]
[1739201868597,20.0,202.46,202.39,13.99027092]
[1739201868904,13.99027092,202.45,202.38,13.99027092]
[1739201869079,36.3593,202.46,202.39,13.99027092]
[1739201869277,20.0,202.46,202.41,13.41184853]
[1739201869478,13.99027092,202.5,202.42,13.99027092]
[1739201869700,1.5493,202.52,202.46,13.41184853]
[1739201869905,20.0,202.5,202.46,13.41184853]
[1739201870120,20.0,202.5,202.43,13.99027092]
[1739201870285,13.99027092,202.49,202.42,13.99027092]
[1739201870490,13.99027092,202.5,202.43,13.41184853]
[1739201870704,14.81,202.51,202.44,27.40211945]
[1739201870705,13.99027092,202.51,202.44,27.40211945]
[1739201870912,13.99027092,202.51,202.43,13.99027092]
[1739201871207,33.99027092,202.5,202.44,13.41184853]
[1739201871425,33.99027092,202.5,202.43,13.99027092]
[1739201871707,15.53957092,202.52,202.44,13.41184853]
[1739201871906,15.53957092,202.52,202.46,13.41184853]
[1739201872104,6.2736,202.53,202.48,13.41184853]
[1739201872511,6.2736,202.53,202.47,13.41184853]
[1739201872809,20.26387092,202.53,202.47,13.41184853]
[1739201873189,13.99027092,202.52,202.46,13.41184853]
[1739201873499,20.26387092,202.53,202.46,13.41184853]
[1739201873709,20.26387092,202.53,202.38,0.03]
[1739201873710,6.2736,202.53,202.47,27.40211945]
[1739201874292,4.26,202.54,202.47,27.40211945]
[1739201874499,13.99027092,202.55,202.47,27.40211945]
[1739201874989,13.99027092,202.54,202.47,27.40211945]
[1739201875184,13.99027092,202.53,202.46,13.99027092]
[1739201875382,13.99027092,202.55,202.48,13.99027092]
[1739201875583,13.99027092,202.54,202.47,13.99027092]
[1739201876409,13.99027092,202.55,202.48,13.99027092]
[1739201876614,13.99027092,202.55,202.49,13.41184853]
[1739201876919,13.99027092,202.57,202.5,27.40211945]
[1739201877204,15.53957092,202.59,202.52,13.41184853]
[1739201877413,6.2736,202.6,202.54,27.40211945]
[1739201877708,6.2736,202.6,202.54,13.41184853]
[1739201878006,6.2736,202.6,202.55,13.41184853]
[1739201878391,6.2736,202.6,202.54,13.99027092]
[1739201878592,6.2736,202.6,202.55,13.41184853]
[1739201878792,0.063,202.62,202.55,27.40211945]
[1739201878995,0.063,202.62,202.57,27.40211945]
[1739201879511,0.01375621,202.62,202.57,13.41184853]
[1739201879707,14.00402713,202.62,202.47,8.33122657]
[1739201879918,13.99027092,202.58,202.51,13.99027092]
[1739201880214,13.99027092,202.58,202.52,13.41184853]
[1739201880395,13.99027092,202.58,202.5,13.99027092]
[1739201880713,13.99027092,202.58,202.42,2.29317504]
[1739201880714,13.99027092,202.52,202.44,13.99027092]
[1739201880907,13.99027092,202.51,202.45,13.41184853]
[1739201881088,20.63647092,202.53,202.47,13.41184853]
[1739201881289,6.6462,202.53,202.47,27.40211945]
[1739201881504,13.99027092,202.52,202.45,13.99027092]
[1739201881893,13.99027092,202.52,202.46,13.41184853]
[1739201882091,20.0,202.5,202.43,13.99027092]
[1739201882291,20.0,202.5,202.45,13.99027092]
[1739201882499,20.0,202.5,202.46,13.41184853]
[1739201882814,15.51047092,202.52,202.46,13.41184853]
[1739201883226,33.99027092,202.48,202.38,0.03]
[1739201883394,13.99027092,202.47,202.4,13.99027092]
[1739201883698,13.99027092,202.46,202.38,14.02027092]
[1739201883901,13.99027092,202.45,202.38,0.03]
[1739201884117,13.99027092,202.45,202.38,14.02027092]
[1739201884324,13.99027092,202.46,202.39,13.99027092]
[1739201884505,13.99027092,202.49,202.42,13.99027092]
[1739201884710,13.99027092,202.5,202.43,13.41184853]
[1739201885007,20.0,202.48,202.42,13.41184853]
[1739201885200,28.80027092,202.46,202.38,14.02027092]
[1739201885411,13.99027092,202.45,202.38,0.03]
[1739201885729,13.99027092,202.44,202.38,0.03]
[1739201886028,13.99027092,202.39,202.38,0.03]
[1739201886204,1.5202,202.38,202.3,13.99027092]
[1739201886408,14.81,202.26,202.25,0.2]
[1739201886712,14.81,202.23,202.17,0.03]
[1739201886913,13.99027092,202.18,202.06,13.99027092]
[1739201887093,13.99027092,202.12,202.04,14.66143718]
[1739201887519,13.99027092,202.16,202.06,13.99027092]
[1739201887695,1.5202,202.24,202.12,22.93270491]
[1739201887696,22.93270491,202.19,202.12,22.93270491]
[1739201888112,22.93270491,202.17,202.1,22.93270491]
[1739201888422,22.93270491,202.11,202.04,0.67116626]
[1739201888618,22.93270491,202.15,202.06,22.93270491]
[1739201888919,22.93270491,202.15,202.08,22.93270491]
[1739201889230,22.93270491,202.15,202.04,0.67116626]
[1739201889231,22.93270491,202.17,202.1,22.93270491]
[1739201889398,24.29441782,202.17,202.09,22.93270491]
[1739201889600,22.93270491,202.16,202.09,22.93270491]
[1739201889818,22.93270491,202.16,202.07,22.93270491]
[1739201890199,1.0,202.21,202.04,0.67116626]
[1739201890200,37.74270491,202.08,202.04,0.67116626]
[1739201890399,1.0,202.1,202.04,0.67116626]
[1739201890400,22.93270491,202.07,202.04,0.67116626]
[1739201890730,22.93270491,202.15,202.06,22.93270491]
[1739201890926,22.93270491,202.15,202.04,0.67116626]
[1739201890927,22.93270491,202.17,202.08,22.93270491]
[1739201891225,22.93270491,202.13,202.06,22.93270491]
[1739201891396,22.93270491,202.15,202.08,22.93270491]
[1739201891600,22.93270491,202.17,202.1,22.93270491]
[1739201891919,22.93270491,202.17,202.08,22.93270491]
[1739201892410,116.06480159,202.16,202.08,5.73011713]
[1739201892606,22.93270491,202.13,202.04,23.60387117]
[1739201893220,22.93270491,202.11,202.04,0.67116626]
[1739201893407,0.47660167,202.04,202.0,22.93270491]
[1739201894129,0.47660167,202.01,201.96,22.93270491]
[1739201894307,0.47660167,201.96,201.92,22.93270491]
[1739201894623,0.47660167,202.0,201.94,22.93270491]
[1739201895014,0.47660167,201.97,201.94,22.93270491]
[1739201895199,0.47660167,201.99,201.94,22.93270491]
[1739201895721,0.47660167,202.01,201.98,22.93270491]
[1739201895898,5.35660167,202.07,202.0,22.93270491]
[1739201896098,0.47660167,202.05,202.0,22.93270491]
[1739201896294,0.47660167,202.03,202.0,22.93270491]
[1739201896499,0.47660167,202.0,201.96,22.93270491]
[1739201896728,0.47660167,202.0,201.94,22.93270491]
[1739201897027,0.47660167,202.02,201.98,22.93270491]
[1739201897228,0.47660167,202.0,201.98,22.93270491]
[1739201897406,0.47660167,202.04,201.98,22.93270491]
[1739201897613,0.47660167,202.04,202.0,22.93270491]